[Event "Titled Tuesday Blitz June 6 Early 2023"]
[White "Vlassov, Nikolai"]
[Black "Lehtosaari, Mauri"]
[WhiteFideId "4103360"]
[BlackFideId "501999"]
[WhiteElo "2324"]
[BlackElo "2481"]
[Result "1-0"]
[Round "10"]
[TimeControl "180+2"]
[Date "2023.06.06"]
[WhiteClock "0:00:11"]
[BlackClock "0:00:02"]
[Board "83"]

1. e4 {[%clk 0:03:00]}  d5 {[%clk 0:02:52]} 2. exd5 {[%clk 0:02:59]}  Qxd5 {[%clk 0:02:52]} 3. Nc3 {[%clk 0:02:59]}  Qd8 {[%clk 0:02:50]} 4. Nf3 {[%clk 0:02:59]}  Nf6 {[%clk 0:02:50]} 5. d4 {[%clk 0:02:58]}  Bg4 {[%clk 0:02:50]} 6. h3 {[%clk 0:02:58]}  Bxf3 {[%clk 0:02:50]} 7. Qxf3 {[%clk 0:02:58]}  c6 {[%clk 0:02:51]} 8. Bf4 {[%clk 0:02:42]}  e6 {[%clk 0:02:50]} 9. O-O-O {[%clk 0:02:41]}  Nbd7 {[%clk 0:02:40]} 10. g4 {[%clk 0:02:26]}  Nd5 {[%clk 0:02:29]} 11. Nxd5 {[%clk 0:02:20]}  cxd5 {[%clk 0:02:29]} 12. c4 {[%clk 0:02:07]}  Rc8 {[%clk 0:02:14]} 13. Kb1 {[%clk 0:02:06]}  Nf6 {[%clk 0:02:09]} 14. cxd5 {[%clk 0:01:55]}  Nxd5 {[%clk 0:01:53]} 15. Bb5+ {[%clk 0:01:53]}  Rc6 {[%clk 0:01:53]} 16. Be5 {[%clk 0:01:33]}  f6 {[%clk 0:01:24]} 17. Bxc6+ {[%clk 0:01:26]}  bxc6 {[%clk 0:01:25]} 18. Bg3 {[%clk 0:01:27]}  Bd6 {[%clk 0:01:23]} 19. Rhe1 {[%clk 0:01:24]}  Kf7 {[%clk 0:01:23]} 20. Qe4 {[%clk 0:01:17]}  Qd7 {[%clk 0:01:12]} 21. Rd3 {[%clk 0:01:05]}  g6 {[%clk 0:01:09]} 22. Rb3 {[%clk 0:00:51]}  Bxg3 {[%clk 0:01:05]} 23. fxg3 {[%clk 0:00:51]}  Re8 {[%clk 0:01:03]} 24. h4 {[%clk 0:00:49]}  Re7 {[%clk 0:01:00]} 25. h5 {[%clk 0:00:49]}  Qd6 {[%clk 0:00:53]} 26. hxg6+ {[%clk 0:00:46]}  hxg6 {[%clk 0:00:53]} 27. g5 {[%clk 0:00:45]}  f5 {[%clk 0:00:46]} 28. Qh4 {[%clk 0:00:42]}  Nb6 {[%clk 0:00:27]} 29. Qh7+ {[%clk 0:00:37]}  Ke8 {[%clk 0:00:27]} 30. Qxg6+ {[%clk 0:00:37]}  Kd7 {[%clk 0:00:27]} 31. Qf6 {[%clk 0:00:34]}  Kc7 {[%clk 0:00:22]} 32. g6 {[%clk 0:00:32]}  Nd5 {[%clk 0:00:22]} 33. Qg5 {[%clk 0:00:28]}  Rg7 {[%clk 0:00:20]} 34. Rh1 {[%clk 0:00:22]}  Qd7 {[%clk 0:00:15]} 35. Ra3 {[%clk 0:00:21]}  Kb7 {[%clk 0:00:14]} 36. Rh8 {[%clk 0:00:18]}  Nb6 {[%clk 0:00:12]} 37. Rd3 {[%clk 0:00:13]}  Kc7 {[%clk 0:00:10]} 38. Qf6 {[%clk 0:00:13]}  Nc8 {[%clk 0:00:05]} 39. Qe5+ {[%clk 0:00:11]}  Nd6 {[%clk 0:00:05]} 40. Ra3 {[%clk 0:00:11]}  Kb7 {[%clk 0:00:05]} 41. Qxg7 {[%clk 0:00:10]}  Qxg7 {[%clk 0:00:03]} 42. Rh7 {[%clk 0:00:11]}  Qxh7 {[%clk 0:00:03]} 43. gxh7 {[%clk 0:00:11]}  Nf7 {[%clk 0:00:03]} 44. Re3 {[%clk 0:00:11]}  Nh8 {[%clk 0:00:02]} 45. Rxe6 {[%clk 0:00:11]}  Kb6 {[%clk 0:00:02]} 46. Re8 {[%clk 0:00:11]} 1-0


[Site "https://www.chess.com"]

[Event "Titled Tuesday Blitz June 6 Early 2023"]
[White "Alexikov, Alexander"]
[Black "Novikov, Evgenij"]
[WhiteFideId "14103958"]
[BlackFideId "4125380"]
[WhiteElo "2186"]
[BlackElo "2242"]
[Result "1-0"]
[Round "10"]
[TimeControl "180+2"]
[Date "2023.06.06"]
[WhiteClock "0:00:15"]
[BlackClock "0:00:01"]
[Board "85"]

1. e4 {[%clk 0:03:00]}  e5 {[%clk 0:02:58]} 2. Nf3 {[%clk 0:03:00]}  Nc6 {[%clk 0:02:59]} 3. c3 {[%clk 0:03:00]}  d6 {[%clk 0:02:54]} 4. d4 {[%clk 0:02:59]}  Be7 {[%clk 0:02:53]} 5. Bb5 {[%clk 0:02:58]}  exd4 {[%clk 0:02:48]} 6. cxd4 {[%clk 0:02:56]}  Bd7 {[%clk 0:02:47]} 7. Nc3 {[%clk 0:02:55]}  a6 {[%clk 0:02:39]} 8. Ba4 {[%clk 0:02:40]}  Nf6 {[%clk 0:02:34]} 9. O-O {[%clk 0:02:37]}  O-O {[%clk 0:02:33]} 10. h3 {[%clk 0:02:37]}  b5 {[%clk 0:02:08]} 11. Bc2 {[%clk 0:02:34]}  b4 {[%clk 0:01:53]} 12. Ne2 {[%clk 0:02:28]}  d5 {[%clk 0:01:48]} 13. e5 {[%clk 0:02:27]}  Ne4 {[%clk 0:01:46]} 14. Nf4 {[%clk 0:02:25]}  Bf5 {[%clk 0:01:33]} 15. Bb3 {[%clk 0:02:22]}  Be6 {[%clk 0:01:26]} 16. Be3 {[%clk 0:02:21]}  Na5 {[%clk 0:01:20]} 17. Rc1 {[%clk 0:02:16]}  Nxb3 {[%clk 0:01:13]} 18. axb3 {[%clk 0:02:15]}  Qd7 {[%clk 0:01:03]} 19. Qc2 {[%clk 0:02:12]}  Rfc8 {[%clk 0:01:01]} 20. Qc6 {[%clk 0:02:10]}  Qxc6 {[%clk 0:00:50]} 21. Rxc6 {[%clk 0:02:08]}  Bd7 {[%clk 0:00:35]} 22. Nxd5 {[%clk 0:02:05]}  Bd8 {[%clk 0:00:31]} 23. Rc4 {[%clk 0:02:00]}  Bb5 {[%clk 0:00:30]} 24. Nxb4 {[%clk 0:01:35]}  a5 {[%clk 0:00:22]} 25. Nd3 {[%clk 0:01:28]}  Bxc4 {[%clk 0:00:22]} 26. bxc4 {[%clk 0:01:27]}  a4 {[%clk 0:00:23]} 27. Ra1 {[%clk 0:01:26]}  Be7 {[%clk 0:00:21]} 28. c5 {[%clk 0:01:25]}  f6 {[%clk 0:00:19]} 29. Bf4 {[%clk 0:01:19]}  g5 {[%clk 0:00:19]} 30. Be3 {[%clk 0:01:18]}  h6 {[%clk 0:00:19]} 31. exf6 {[%clk 0:01:17]}  Nxf6 {[%clk 0:00:18]} 32. Nfe5 {[%clk 0:01:16]}  Nd5 {[%clk 0:00:18]} 33. Kf1 {[%clk 0:01:09]}  Ra6 {[%clk 0:00:17]} 34. Ke2 {[%clk 0:01:09]}  Rca8 {[%clk 0:00:17]} 35. Ra3 {[%clk 0:01:07]}  Kg7 {[%clk 0:00:16]} 36. Kd2 {[%clk 0:01:06]}  Bf6 {[%clk 0:00:15]} 37. Kc2 {[%clk 0:01:06]}  c6 {[%clk 0:00:15]} 38. Bd2 {[%clk 0:01:02]}  Re8 {[%clk 0:00:14]} 39. f4 {[%clk 0:01:01]}  gxf4 {[%clk 0:00:14]} 40. Nxf4 {[%clk 0:00:41]}  Bxe5 {[%clk 0:00:13]} 41. Nxd5 {[%clk 0:00:39]}  cxd5 {[%clk 0:00:14]} 42. Re3 {[%clk 0:00:38]}  a3 {[%clk 0:00:11]} 43. bxa3 {[%clk 0:00:34]}  Rb8 {[%clk 0:00:06]} 44. dxe5 {[%clk 0:00:30]}  Kf7 {[%clk 0:00:04]} 45. Bb4 {[%clk 0:00:29]}  Ke6 {[%clk 0:00:04]} 46. g4 {[%clk 0:00:27]}  Rf8 {[%clk 0:00:04]} 47. Kd3 {[%clk 0:00:26]}  Rf2 {[%clk 0:00:04]} 48. Re2 {[%clk 0:00:25]}  Rf3+ {[%clk 0:00:04]} 49. Re3 {[%clk 0:00:25]}  Rf2 {[%clk 0:00:04]} 50. h4 {[%clk 0:00:23]}  Rf4 {[%clk 0:00:03]} 51. Rg3 {[%clk 0:00:22]}  d4 {[%clk 0:00:02]} 52. g5 {[%clk 0:00:22]}  hxg5 {[%clk 0:00:03]} 53. hxg5 {[%clk 0:00:21]}  Ra8 {[%clk 0:00:04]} 54. g6 {[%clk 0:00:21]}  Rg8 {[%clk 0:00:03]} 55. g7 {[%clk 0:00:19]}  Kd5 {[%clk 0:00:03]} 56. e6 {[%clk 0:00:18]}  Kxe6 {[%clk 0:00:02]} 57. Kc4 {[%clk 0:00:18]}  Rf7 {[%clk 0:00:01]} 58. c6 {[%clk 0:00:17]}  Rfxg7 {[%clk 0:00:01]} 59. Rxg7 {[%clk 0:00:16]}  Rxg7 {[%clk 0:00:02]} 60. Kxd4 {[%clk 0:00:16]}  Rc7 {[%clk 0:00:01]} 61. Kc5 {[%clk 0:00:16]}  Ke7 {[%clk 0:00:01]} 62. Kb6+ {[%clk 0:00:16]}  Kd8 {[%clk 0:00:02]} 63. Bd6 {[%clk 0:00:15]}  Rf7 {[%clk 0:00:01]} 64. a4 {[%clk 0:00:15]} 1-0


[Site "https://www.chess.com"]

[Event "Titled Tuesday Blitz June 6 Early 2023"]
[White "Krutko, Anatoly"]
[Black "Avazkhonov, Alikhon"]
[WhiteFideId "4185862"]
[BlackFideId "14208504"]
[WhiteElo "2378"]
[BlackElo "1739"]
[Result "1-0"]
[Round "10"]
[TimeControl "180+2"]
[Date "2023.06.06"]
[WhiteClock "0:00:09"]
[BlackClock "0:00:08"]
[Board "89"]

1. d4 {[%clk 0:02:55]}  Nf6 {[%clk 0:03:00]} 2. c4 {[%clk 0:02:55]}  e6 {[%clk 0:03:00]} 3. Nc3 {[%clk 0:02:56]}  Bb4 {[%clk 0:03:01]} 4. e3 {[%clk 0:02:56]}  b6 {[%clk 0:03:01]} 5. Bd3 {[%clk 0:02:54]}  Bb7 {[%clk 0:03:02]} 6. Nf3 {[%clk 0:02:55]}  O-O {[%clk 0:03:03]} 7. O-O {[%clk 0:02:55]}  d5 {[%clk 0:03:03]} 8. cxd5 {[%clk 0:02:51]}  exd5 {[%clk 0:03:03]} 9. a3 {[%clk 0:02:50]}  Bd6 {[%clk 0:03:03]} 10. Ne5 {[%clk 0:02:50]}  a6 {[%clk 0:03:03]} 11. f4 {[%clk 0:02:51]}  c5 {[%clk 0:03:03]} 12. Rf3 {[%clk 0:02:32]}  Nc6 {[%clk 0:03:03]} 13. Rh3 {[%clk 0:02:28]}  h6 {[%clk 0:02:50]} 14. Ng4 {[%clk 0:02:14]}  Be7 {[%clk 0:02:39]} 15. dxc5 {[%clk 0:01:44]}  d4 {[%clk 0:01:38]} 16. Ne4 {[%clk 0:01:11]}  Nxg4 {[%clk 0:01:24]} 17. Qxg4 {[%clk 0:01:08]}  Bc8 {[%clk 0:01:24]} 18. f5 {[%clk 0:01:00]}  Ne5 {[%clk 0:01:22]} 19. Qe2 {[%clk 0:00:40]}  Nxd3 {[%clk 0:01:14]} 20. Qxd3 {[%clk 0:00:41]}  Bxf5 {[%clk 0:01:06]} 21. Rf3 {[%clk 0:00:39]}  Bg6 {[%clk 0:00:37]} 22. exd4 {[%clk 0:00:39]}  bxc5 {[%clk 0:00:33]} 23. d5 {[%clk 0:00:24]}  Re8 {[%clk 0:00:23]} 24. Qc4 {[%clk 0:00:21]}  Bf8 {[%clk 0:00:08]} 25. Nc3 {[%clk 0:00:15]}  Re1+ {[%clk 0:00:07]} 26. Rf1 {[%clk 0:00:16]}  Qh4 {[%clk 0:00:07]} 27. Qxh4 {[%clk 0:00:12]}  Rxf1+ {[%clk 0:00:07]} 28. Kxf1 {[%clk 0:00:12]}  Bd3+ {[%clk 0:00:07]} 29. Kg1 {[%clk 0:00:13]}  Re8 {[%clk 0:00:07]} 30. Bd2 {[%clk 0:00:12]}  c4 {[%clk 0:00:08]} 31. Re1 {[%clk 0:00:12]}  Bc5+ {[%clk 0:00:08]} 32. Kh1 {[%clk 0:00:12]}  Rb8 {[%clk 0:00:08]} 33. Na4 {[%clk 0:00:08]}  Bd6 {[%clk 0:00:08]} 34. Bc3 {[%clk 0:00:09]} 1-0


[Site "https://www.chess.com"]

[Event "Titled Tuesday Blitz June 6 Early 2023"]
[White "Jaskolka, Tomasz"]
[Black "Koridze, Lile"]
[WhiteFideId "1170791"]
[BlackFideId "13612514"]
[WhiteElo "2155"]
[BlackElo "2047"]
[Result "1-0"]
[Round "10"]
[TimeControl "180+2"]
[Date "2023.06.06"]
[WhiteClock "0:01:38"]
[BlackClock "0:01:55"]
[Board "90"]

1. d4 {[%clk 0:03:00]}  Nf6 {[%clk 0:02:59]} 2. Nc3 {[%clk 0:02:59]}  d5 {[%clk 0:02:59]} 3. Bf4 {[%clk 0:02:59]}  c6 {[%clk 0:02:58]} 4. e3 {[%clk 0:02:58]}  e6 {[%clk 0:02:58]} 5. Nf3 {[%clk 0:02:58]}  Bd6 {[%clk 0:02:59]} 6. Ne5 {[%clk 0:02:58]}  O-O {[%clk 0:02:59]} 7. Bd3 {[%clk 0:02:57]}  Qc7 {[%clk 0:02:59]} 8. Qf3 {[%clk 0:02:56]}  Nbd7 {[%clk 0:02:59]} 9. Qg3 {[%clk 0:02:49]}  Nh5 {[%clk 0:02:45]} 10. Qh3 {[%clk 0:02:39]}  g6 {[%clk 0:02:44]} 11. g4 {[%clk 0:02:24]}  Nxf4 {[%clk 0:02:40]} 12. exf4 {[%clk 0:02:24]}  f6 {[%clk 0:02:27]} 13. Bxg6 {[%clk 0:02:03]}  hxg6 {[%clk 0:02:21]} 14. Nxg6 {[%clk 0:02:04]}  Kg7 {[%clk 0:02:21]} 15. Nxf8 {[%clk 0:02:03]}  Nxf8 {[%clk 0:02:22]} 16. g5 {[%clk 0:02:00]}  f5 {[%clk 0:02:19]} 17. Qh6+ {[%clk 0:01:57]}  Kg8 {[%clk 0:02:18]} 18. O-O-O {[%clk 0:01:55]}  Bxf4+ {[%clk 0:02:18]} 19. Kb1 {[%clk 0:01:55]}  Qg7 {[%clk 0:02:18]} 20. Qh5 {[%clk 0:01:48]}  Qg6 {[%clk 0:02:08]} 21. Qf3 {[%clk 0:01:46]}  Bd6 {[%clk 0:02:07]} 22. h4 {[%clk 0:01:46]}  Kh8 {[%clk 0:02:05]} 23. Rdg1 {[%clk 0:01:44]}  Bd7 {[%clk 0:02:01]} 24. h5 {[%clk 0:01:43]}  Qg7 {[%clk 0:02:00]} 25. g6 {[%clk 0:01:41]}  Qh6 {[%clk 0:01:54]} 26. g7+ {[%clk 0:01:38]}  Qxg7 {[%clk 0:01:54]} 27. Rxg7 {[%clk 0:01:38]}  Kxg7 {[%clk 0:01:55]} 1-0


[Site "https://www.chess.com"]

[Event "Titled Tuesday Blitz June 6 Early 2023"]
[White "Ginzburg, Yakov"]
[Black "Barbot, Pierre"]
[WhiteFideId "4157176"]
[BlackFideId "663727"]
[WhiteElo "2305"]
[BlackElo "2431"]
[Result "1-0"]
[Round "10"]
[TimeControl "180+2"]
[Date "2023.06.06"]
[WhiteClock "0:00:05"]
[BlackClock "0:00:01"]
[Board "92"]

1. e4 {[%clk 0:02:59]}  c6 {[%clk 0:03:00]} 2. d4 {[%clk 0:02:59]}  d5 {[%clk 0:03:00]} 3. Nc3 {[%clk 0:02:59]}  dxe4 {[%clk 0:03:01]} 4. Nxe4 {[%clk 0:02:59]}  Nf6 {[%clk 0:03:01]} 5. Nxf6+ {[%clk 0:02:59]}  exf6 {[%clk 0:03:02]} 6. Bc4 {[%clk 0:02:59]}  Bd6 {[%clk 0:03:02]} 7. Ne2 {[%clk 0:02:59]}  O-O {[%clk 0:03:01]} 8. O-O {[%clk 0:02:59]}  Nd7 {[%clk 0:02:55]} 9. Ng3 {[%clk 0:02:58]}  b5 {[%clk 0:02:49]} 10. Bb3 {[%clk 0:02:56]}  Nb6 {[%clk 0:02:49]} 11. Qh5 {[%clk 0:02:53]}  g6 {[%clk 0:02:44]} 12. Qh6 {[%clk 0:02:53]}  Nd5 {[%clk 0:02:14]} 13. c3 {[%clk 0:02:52]}  f5 {[%clk 0:01:59]} 14. Bg5 {[%clk 0:02:48]}  Be7 {[%clk 0:02:00]} 15. Bxe7 {[%clk 0:02:42]}  Qxe7 {[%clk 0:02:01]} 16. Rae1 {[%clk 0:02:41]}  Qf6 {[%clk 0:01:58]} 17. Bxd5 {[%clk 0:02:39]}  cxd5 {[%clk 0:01:58]} 18. Nh5 {[%clk 0:02:37]}  Qh8 {[%clk 0:01:52]} 19. Re3 {[%clk 0:02:22]}  Be6 {[%clk 0:01:27]} 20. Rfe1 {[%clk 0:02:21]}  Rfe8 {[%clk 0:01:19]} 21. Nf4 {[%clk 0:02:08]}  Qg7 {[%clk 0:00:59]} 22. Qxg7+ {[%clk 0:02:02]}  Kxg7 {[%clk 0:01:00]} 23. Nxe6+ {[%clk 0:02:02]}  fxe6 {[%clk 0:01:01]} 24. Rxe6 {[%clk 0:02:03]}  Rxe6 {[%clk 0:01:00]} 25. Rxe6 {[%clk 0:02:03]}  b4 {[%clk 0:00:59]} 26. cxb4 {[%clk 0:01:59]}  Rc8 {[%clk 0:01:00]} 27. g3 {[%clk 0:01:57]}  Rc2 {[%clk 0:00:58]} 28. Re7+ {[%clk 0:01:57]}  Kf6 {[%clk 0:00:54]} 29. Rxh7 {[%clk 0:01:56]}  Rxb2 {[%clk 0:00:55]} 30. Rxa7 {[%clk 0:01:56]}  Rxb4 {[%clk 0:00:55]} 31. Ra6+ {[%clk 0:01:54]}  Kf7 {[%clk 0:00:53]} 32. Kg2 {[%clk 0:01:49]}  Rxd4 {[%clk 0:00:53]} 33. h4 {[%clk 0:01:48]}  Rd3 {[%clk 0:00:51]} 34. f3 {[%clk 0:01:39]}  Rd2+ {[%clk 0:00:49]} 35. Kf1 {[%clk 0:01:39]}  d4 {[%clk 0:00:47]} 36. Ke1 {[%clk 0:01:39]}  Rg2 {[%clk 0:00:47]} 37. Rd6 {[%clk 0:01:35]}  Rxg3 {[%clk 0:00:45]} 38. Kf2 {[%clk 0:01:35]}  Rh3 {[%clk 0:00:42]} 39. Rxd4 {[%clk 0:01:31]}  Rh2+ {[%clk 0:00:43]} 40. Kg3 {[%clk 0:01:29]}  Rxa2 {[%clk 0:00:44]} 41. Rd6 {[%clk 0:01:27]}  Ra4 {[%clk 0:00:39]} 42. Rb6 {[%clk 0:01:27]}  Kg7 {[%clk 0:00:39]} 43. Rc6 {[%clk 0:01:26]}  Kh6 {[%clk 0:00:40]} 44. Rb6 {[%clk 0:01:23]}  Kh5 {[%clk 0:00:37]} 45. Rb8 {[%clk 0:01:22]}  Kh6 {[%clk 0:00:34]} 46. Rc8 {[%clk 0:01:21]}  Rb4 {[%clk 0:00:29]} 47. Ra8 {[%clk 0:01:21]}  Rc4 {[%clk 0:00:30]} 48. Kh3 {[%clk 0:01:20]}  Rb4 {[%clk 0:00:26]} 49. Kg3 {[%clk 0:01:20]}  Rd4 {[%clk 0:00:26]} 50. Re8 {[%clk 0:01:20]}  Kg7 {[%clk 0:00:23]} 51. Re5 {[%clk 0:01:18]}  Kf6 {[%clk 0:00:24]} 52. Ra5 {[%clk 0:01:18]}  Rb4 {[%clk 0:00:24]} 53. Kf2 {[%clk 0:01:18]}  Rxh4 {[%clk 0:00:22]} 54. Kg3 {[%clk 0:01:17]}  Rb4 {[%clk 0:00:22]} 55. Ra6+ {[%clk 0:01:17]}  Kg5 {[%clk 0:00:22]} 56. Rc6 {[%clk 0:01:17]}  Rb2 {[%clk 0:00:21]} 57. Ra6 {[%clk 0:01:16]}  Rb1 {[%clk 0:00:19]} 58. Rc6 {[%clk 0:01:13]}  Rh1 {[%clk 0:00:18]} 59. Rc8 {[%clk 0:01:04]}  f4+ {[%clk 0:00:18]} 60. Kg2 {[%clk 0:01:03]}  Rb1 {[%clk 0:00:17]} 61. Rc7 {[%clk 0:00:56]}  Rb3 {[%clk 0:00:15]} 62. Rc8 {[%clk 0:00:53]}  Kf5 {[%clk 0:00:14]} 63. Rc5+ {[%clk 0:00:50]}  Kf6 {[%clk 0:00:15]} 64. Rc6+ {[%clk 0:00:51]}  Kg5 {[%clk 0:00:14]} 65. Rc8 {[%clk 0:00:51]}  Kh6 {[%clk 0:00:14]} 66. Rc6 {[%clk 0:00:50]}  Kh5 {[%clk 0:00:14]} 67. Rc8 {[%clk 0:00:47]}  g5 {[%clk 0:00:14]} 68. Rh8+ {[%clk 0:00:45]}  Kg6 {[%clk 0:00:14]} 69. Ra8 {[%clk 0:00:45]}  Kf5 {[%clk 0:00:14]} 70. Rf8+ {[%clk 0:00:44]}  Ke5 {[%clk 0:00:14]} 71. Re8+ {[%clk 0:00:44]}  Kd4 {[%clk 0:00:14]} 72. Re7 {[%clk 0:00:43]}  Kd3 {[%clk 0:00:12]} 73. Re8 {[%clk 0:00:41]}  Kd2 {[%clk 0:00:13]} 74. Re5 {[%clk 0:00:39]}  Re3 {[%clk 0:00:10]} 75. Rxg5 {[%clk 0:00:37]}  Ke2 {[%clk 0:00:09]} 76. Ra5 {[%clk 0:00:34]}  Rd3 {[%clk 0:00:09]} 77. Re5+ {[%clk 0:00:32]}  Re3 {[%clk 0:00:09]} 78. Ra5 {[%clk 0:00:28]}  Rd3 {[%clk 0:00:09]} 79. Ra4 {[%clk 0:00:26]}  Rd2 {[%clk 0:00:03]} 80. Ra3 {[%clk 0:00:20]}  Ke1+ {[%clk 0:00:02]} 81. Kh3 {[%clk 0:00:20]}  Kf2 {[%clk 0:00:02]} 82. Kg4 {[%clk 0:00:19]}  Rd4 {[%clk 0:00:02]} 83. Rb3 {[%clk 0:00:18]}  Kg2 {[%clk 0:00:02]} 84. Rb2+ {[%clk 0:00:18]}  Kf1 {[%clk 0:00:03]} 85. Kf5 {[%clk 0:00:17]}  Rc4 {[%clk 0:00:02]} 86. Ke5 {[%clk 0:00:16]}  Ra4 {[%clk 0:00:02]} 87. Rd2 {[%clk 0:00:15]}  Ke1 {[%clk 0:00:02]} 88. Rh2 {[%clk 0:00:15]}  Kf1 {[%clk 0:00:02]} 89. Kf5 {[%clk 0:00:14]}  Ke1 {[%clk 0:00:02]} 90. Kg4 {[%clk 0:00:12]}  Kf1 {[%clk 0:00:02]} 91. Rb2 {[%clk 0:00:11]}  Ke1 {[%clk 0:00:02]} 92. Kf5 {[%clk 0:00:11]}  Kf1 {[%clk 0:00:03]} 93. Ke5 {[%clk 0:00:11]}  Ke1 {[%clk 0:00:03]} 94. Rc2 {[%clk 0:00:11]}  Kf1 {[%clk 0:00:04]} 95. Rh2 {[%clk 0:00:08]}  Ke1 {[%clk 0:00:04]} 96. Rh4 {[%clk 0:00:07]}  Kf2 {[%clk 0:00:03]} 97. Rxf4 {[%clk 0:00:07]}  Ra5+ {[%clk 0:00:04]} 98. Ke4 {[%clk 0:00:07]}  Ra4+ {[%clk 0:00:03]} 99. Kf5 {[%clk 0:00:07]}  Ra5+ {[%clk 0:00:04]} 100. Kg4 {[%clk 0:00:07]}  Ke3 {[%clk 0:00:04]} 101. Re4+ {[%clk 0:00:07]}  Kd3 {[%clk 0:00:04]} 102. Re1 {[%clk 0:00:07]}  Ra8 {[%clk 0:00:03]} 103. f4 {[%clk 0:00:07]}  Rg8+ {[%clk 0:00:03]} 104. Kf5 {[%clk 0:00:06]}  Rf8+ {[%clk 0:00:04]} 105. Kg5 {[%clk 0:00:05]}  Rg8+ {[%clk 0:00:05]} 106. Kf5 {[%clk 0:00:05]}  Rf8+ {[%clk 0:00:05]} 107. Kg4 {[%clk 0:00:06]}  Rg8+ {[%clk 0:00:06]} 108. Kf3 {[%clk 0:00:06]}  Rf8 {[%clk 0:00:06]} 109. Rd1+ {[%clk 0:00:06]}  Kc4 {[%clk 0:00:06]} 110. Rd7 {[%clk 0:00:03]}  Kc5 {[%clk 0:00:06]} 111. Kg4 {[%clk 0:00:04]}  Kc6 {[%clk 0:00:05]} 112. Rd1 {[%clk 0:00:03]}  Rg8+ {[%clk 0:00:05]} 113. Kh5 {[%clk 0:00:03]}  Rf8 {[%clk 0:00:04]} 114. Kg5 {[%clk 0:00:03]}  Rg8+ {[%clk 0:00:05]} 115. Kf6 {[%clk 0:00:04]}  Rf8+ {[%clk 0:00:05]} 116. Ke5 {[%clk 0:00:04]}  Re8+ {[%clk 0:00:05]} 117. Kf5 {[%clk 0:00:05]}  Rf8+ {[%clk 0:00:05]} 118. Ke4 {[%clk 0:00:05]}  Re8+ {[%clk 0:00:06]} 119. Kf3 {[%clk 0:00:05]}  Rf8 {[%clk 0:00:06]} 120. Rd2 {[%clk 0:00:06]}  Ra8 {[%clk 0:00:03]} 121. f5 {[%clk 0:00:05]}  Rf8 {[%clk 0:00:02]} 122. Kf4 {[%clk 0:00:05]}  Kc7 {[%clk 0:00:03]} 123. Kg5 {[%clk 0:00:05]}  Rg8+ {[%clk 0:00:03]} 124. Kf6 {[%clk 0:00:06]}  Rf8+ {[%clk 0:00:03]} 125. Ke6 {[%clk 0:00:06]}  Rh8 {[%clk 0:00:03]} 126. f6 {[%clk 0:00:07]}  Rh1 {[%clk 0:00:04]} 127. Kf7 {[%clk 0:00:07]}  Rf1 {[%clk 0:00:03]} 128. Ke7 {[%clk 0:00:07]}  Re1+ {[%clk 0:00:04]} 129. Kf8 {[%clk 0:00:07]}  Rf1 {[%clk 0:00:04]} 130. f7 {[%clk 0:00:07]}  Rf3 {[%clk 0:00:04]} 131. Rd5 {[%clk 0:00:07]}  Rf1 {[%clk 0:00:02]} 132. Kg7 {[%clk 0:00:07]}  Kc6 {[%clk 0:00:01]} 133. Rg5 {[%clk 0:00:05]} 1-0


[Site "https://www.chess.com"]

[Event "Titled Tuesday Blitz June 6 Early 2023"]
[White "Srdanovic, Jovana"]
[Black "Vivas Zamora, Fabian Ernesto"]
[WhiteFideId "954810"]
[BlackFideId "3902480"]
[WhiteElo "2155"]
[BlackElo "2244"]
[Result "0-1"]
[Round "10"]
[TimeControl "180+2"]
[Date "2023.06.06"]
[WhiteClock "0:01:14"]
[BlackClock "0:00:09"]
[Board "93"]

1. d4 {[%clk 0:03:00]}  Nf6 {[%clk 0:02:54]} 2. c4 {[%clk 0:02:59]}  g6 {[%clk 0:02:55]} 3. Nc3 {[%clk 0:02:59]}  d5 {[%clk 0:02:55]} 4. Nf3 {[%clk 0:02:58]}  Bg7 {[%clk 0:02:56]} 5. Bg5 {[%clk 0:02:58]}  Ne4 {[%clk 0:02:53]} 6. cxd5 {[%clk 0:02:58]}  Nxg5 {[%clk 0:02:52]} 7. Nxg5 {[%clk 0:02:59]}  c6 {[%clk 0:02:52]} 8. dxc6 {[%clk 0:02:54]}  Nxc6 {[%clk 0:02:52]} 9. e3 {[%clk 0:02:54]}  e5 {[%clk 0:02:44]} 10. Nf3 {[%clk 0:02:54]}  exd4 {[%clk 0:02:40]} 11. exd4 {[%clk 0:02:54]}  O-O {[%clk 0:01:43]} 12. d5 {[%clk 0:02:48]}  Nb4 {[%clk 0:01:40]} 13. Be2 {[%clk 0:02:45]}  Bxc3+ {[%clk 0:01:35]} 14. bxc3 {[%clk 0:02:46]}  Nxd5 {[%clk 0:01:36]} 15. Rc1 {[%clk 0:02:44]}  Nf4 {[%clk 0:01:31]} 16. O-O {[%clk 0:02:44]}  Be6 {[%clk 0:01:21]} 17. Nd4 {[%clk 0:02:43]}  Bxa2 {[%clk 0:01:15]} 18. Qd2 {[%clk 0:02:37]}  Qg5 {[%clk 0:01:07]} 19. Bg4 {[%clk 0:01:57]}  Nh3+ {[%clk 0:00:57]} 20. Bxh3 {[%clk 0:01:57]}  Qxd2 {[%clk 0:00:57]} 21. Rc2 {[%clk 0:01:57]}  Qd3 {[%clk 0:00:36]} 22. Rxa2 {[%clk 0:01:48]}  Qxc3 {[%clk 0:00:35]} 23. Nf3 {[%clk 0:01:49]}  Qf6 {[%clk 0:00:35]} 24. Rb1 {[%clk 0:01:48]}  b6 {[%clk 0:00:31]} 25. Bd7 {[%clk 0:01:42]}  Rfd8 {[%clk 0:00:30]} 26. Ba4 {[%clk 0:01:41]}  a6 {[%clk 0:00:26]} 27. h3 {[%clk 0:01:40]}  b5 {[%clk 0:00:26]} 28. Bb3 {[%clk 0:01:40]}  Rd3 {[%clk 0:00:26]} 29. Ne1 {[%clk 0:01:40]}  Rc3 {[%clk 0:00:25]} 30. Bd5 {[%clk 0:01:37]}  Rd8 {[%clk 0:00:23]} 31. Bf3 {[%clk 0:01:38]}  Rdc8 {[%clk 0:00:21]} 32. Kf1 {[%clk 0:01:30]}  Rc1 {[%clk 0:00:20]} 33. Rbb2 {[%clk 0:01:29]}  Re8 {[%clk 0:00:18]} 34. Re2 {[%clk 0:01:28]}  Rxe2 {[%clk 0:00:18]} 35. Rxe2 {[%clk 0:01:28]}  Qc3 {[%clk 0:00:18]} 36. h4 {[%clk 0:01:27]}  Kg7 {[%clk 0:00:18]} 37. h5 {[%clk 0:01:27]}  h6 {[%clk 0:00:18]} 38. hxg6 {[%clk 0:01:27]}  Kxg6 {[%clk 0:00:18]} 39. Be4+ {[%clk 0:01:23]}  Kg7 {[%clk 0:00:18]} 40. Bf3 {[%clk 0:01:24]}  a5 {[%clk 0:00:18]} 41. Re3 {[%clk 0:01:24]}  Qb4 {[%clk 0:00:15]} 42. Re4 {[%clk 0:01:23]}  Qd2 {[%clk 0:00:15]} 43. Re2 {[%clk 0:01:23]}  Qb4 {[%clk 0:00:09]} 44. Re4 {[%clk 0:01:23]}  Qc5 {[%clk 0:00:09]} 45. Rg4+ {[%clk 0:01:22]}  Kf8 {[%clk 0:00:10]} 46. Re4 {[%clk 0:01:22]}  a4 {[%clk 0:00:10]} 47. g3 {[%clk 0:01:16]}  a3 {[%clk 0:00:09]} 48. Kg2 {[%clk 0:01:16]}  a2 {[%clk 0:00:09]} 49. Nd3 {[%clk 0:01:17]}  Qc3 {[%clk 0:00:09]} 50. Ne5 {[%clk 0:01:15]}  a1=Q {[%clk 0:00:09]} 51. Nd7+ {[%clk 0:01:15]}  Kg7 {[%clk 0:00:08]} 52. Rg4+ {[%clk 0:01:16]}  Kh8 {[%clk 0:00:09]} 53. Nf6 {[%clk 0:01:15]}  Rg1+ {[%clk 0:00:09]} 54. Kh2 {[%clk 0:01:14]}  Qxf6 {[%clk 0:00:09]} 0-1


[Site "https://www.chess.com"]